[Event "Titled Tuesday Blitz December 27 Late 2022"]
[White "marik_spb"]
[Black "Gurevich, Dmitry"]
[BlackFideId "2000407"]
[WhiteElo "2448"]
[BlackElo "2393"]
[Result "0-1"]
[Round "10"]
[TimeControl "180+2"]
[Date "2022.12.27"]
[WhiteClock "0:00:03"]
[BlackClock "0:00:44"]

1. d4 {[%clk 0:03:00]}  Nf6 {[%clk 0:02:58]} 2. c4 {[%clk 0:03:00]}  g6 {[%clk 0:02:59]} 3. Nf3 {[%clk 0:03:00]}  Bg7 {[%clk 0:02:59]} 4. Nc3 {[%clk 0:03:00]}  O-O {[%clk 0:02:59]} 5. e4 {[%clk 0:03:01]}  d6 {[%clk 0:02:59]} 6. g3 {[%clk 0:03:01]}  e5 {[%clk 0:02:59]} 7. dxe5 {[%clk 0:02:59]}  dxe5 {[%clk 0:02:57]} 8. Qxd8 {[%clk 0:02:58]}  Rxd8 {[%clk 0:02:56]} 9. h3 {[%clk 0:02:58]}  c6 {[%clk 0:02:49]} 10. Be3 {[%clk 0:02:58]}  Na6 {[%clk 0:02:47]} 11. a3 {[%clk 0:02:55]}  Nd7 {[%clk 0:02:42]} 12. Rd1 {[%clk 0:02:52]}  Re8 {[%clk 0:02:41]} 13. Be2 {[%clk 0:02:46]}  Ndc5 {[%clk 0:02:35]} 14. Kf1 {[%clk 0:02:40]}  f5 {[%clk 0:02:29]} 15. b4 {[%clk 0:02:14]}  Ne6 {[%clk 0:02:25]} 16. Kg2 {[%clk 0:02:05]}  f4 {[%clk 0:02:22]} 17. Bc1 {[%clk 0:02:05]}  fxg3 {[%clk 0:02:20]} 18. fxg3 {[%clk 0:02:04]}  Nd4 {[%clk 0:02:20]} 19. Bd3 {[%clk 0:01:37]}  Rf8 {[%clk 0:02:07]} 20. Nxd4 {[%clk 0:00:49]}  exd4 {[%clk 0:02:02]} 21. Na4 {[%clk 0:00:50]}  b6 {[%clk 0:01:51]} 22. c5 {[%clk 0:00:30]}  bxc5 {[%clk 0:01:48]} 23. bxc5 {[%clk 0:00:11]}  Rb8 {[%clk 0:01:44]} 24. Rhf1 {[%clk 0:00:11]}  Nc7 {[%clk 0:01:33]} 25. Bf4 {[%clk 0:00:11]}  Rb7 {[%clk 0:01:28]} 26. Bd6 {[%clk 0:00:11]}  Rxf1 {[%clk 0:01:24]} 27. Rxf1 {[%clk 0:00:12]}  Be6 {[%clk 0:01:23]} 28. Bxc7 {[%clk 0:00:11]}  Rxc7 {[%clk 0:01:20]} 29. Nb2 {[%clk 0:00:12]}  Rb7 {[%clk 0:01:19]} 30. Rf2 {[%clk 0:00:12]}  Bf8 {[%clk 0:01:11]} 31. Bc4 {[%clk 0:00:07]}  Bxc4 {[%clk 0:01:10]} 32. Nxc4 {[%clk 0:00:08]}  Bxc5 {[%clk 0:01:10]} 33. Ne5 {[%clk 0:00:09]}  Bxa3 {[%clk 0:01:01]} 34. Nxc6 {[%clk 0:00:08]}  d3 {[%clk 0:01:01]} 35. Rd2 {[%clk 0:00:07]}  Rb2 {[%clk 0:00:57]} 36. Rxb2 {[%clk 0:00:07]}  Bxb2 {[%clk 0:00:56]} 37. Kf3 {[%clk 0:00:08]}  Bc3 {[%clk 0:00:55]} 38. Ne7+ {[%clk 0:00:06]}  Kf7 {[%clk 0:00:54]} 39. Nd5 {[%clk 0:00:04]}  Bd4 {[%clk 0:00:53]} 40. Nf4 {[%clk 0:00:02]}  d2 {[%clk 0:00:53]} 41. Ke2 {[%clk 0:00:02]}  Bc3 {[%clk 0:00:50]} 42. Nd5 {[%clk 0:00:01]}  Ba5 {[%clk 0:00:50]} 43. Ne3 {[%clk 0:00:01]}  Ke6 {[%clk 0:00:49]} 44. Nc4 {[%clk 0:00:02]}  Bb4 {[%clk 0:00:49]} 45. g4 {[%clk 0:00:02]}  a5 {[%clk 0:00:48]} 46. Kd1 {[%clk 0:00:03]}  a4 {[%clk 0:00:47]} 47. Kc2 {[%clk 0:00:03]}  a3 {[%clk 0:00:47]} 48. Ne3 {[%clk 0:00:03]}  Ke5 {[%clk 0:00:44]} 0-1


[Site "https://www.chess.com"]

[Event "Titled Tuesday Blitz December 27 Late 2022"]
[White "Ai, Evan"]
[Black "Bambino Filho, Antonio Carlos"]
[WhiteFideId "2094770"]
[BlackFideId "2113163"]
[WhiteElo "2055"]
[BlackElo "2144"]
[Result "0-1"]
[Round "11"]
[TimeControl "180+2"]
[Date "2022.12.27"]
[WhiteClock "0:00:06"]
[BlackClock "0:00:24"]

1. e4 {[%clk 0:03:00]}  c5 {[%clk 0:02:59]} 2. Nf3 {[%clk 0:03:01]}  Nc6 {[%clk 0:02:58]} 3. d4 {[%clk 0:03:01]}  cxd4 {[%clk 0:02:59]} 4. Nxd4 {[%clk 0:03:01]}  e6 {[%clk 0:02:59]} 5. Nc3 {[%clk 0:03:01]}  a6 {[%clk 0:02:59]} 6. Be3 {[%clk 0:03:00]}  Qc7 {[%clk 0:02:59]} 7. Be2 {[%clk 0:02:59]}  b5 {[%clk 0:03:00]} 8. O-O {[%clk 0:02:59]}  Nf6 {[%clk 0:03:00]} 9. f3 {[%clk 0:02:53]}  Bb7 {[%clk 0:02:59]} 10. Qd2 {[%clk 0:02:53]}  Be7 {[%clk 0:02:59]} 11. Rad1 {[%clk 0:02:45]}  O-O {[%clk 0:02:59]} 12. Kh1 {[%clk 0:02:39]}  Rac8 {[%clk 0:02:54]} 13. Nxc6 {[%clk 0:02:32]}  Bxc6 {[%clk 0:02:55]} 14. Bf4 {[%clk 0:02:26]}  Qb7 {[%clk 0:02:55]} 15. Be3 {[%clk 0:02:05]}  d5 {[%clk 0:02:54]} 16. exd5 {[%clk 0:02:03]}  Nxd5 {[%clk 0:02:55]} 17. Nxd5 {[%clk 0:02:03]}  Bxd5 {[%clk 0:02:56]} 18. b3 {[%clk 0:02:02]}  Bf6 {[%clk 0:02:53]} 19. Bd3 {[%clk 0:02:01]}  Rfd8 {[%clk 0:02:23]} 20. Qe2 {[%clk 0:01:55]}  Bc6 {[%clk 0:02:09]} 21. c4 {[%clk 0:01:51]}  bxc4 {[%clk 0:01:58]} 22. Bxc4 {[%clk 0:01:52]}  Bb5 {[%clk 0:01:55]} 23. Rxd8+ {[%clk 0:01:49]}  Rxd8 {[%clk 0:01:55]} 24. a4 {[%clk 0:01:30]}  Bxc4 {[%clk 0:01:51]} 25. Qxc4 {[%clk 0:01:31]}  Rc8 {[%clk 0:01:47]} 26. Bc5 {[%clk 0:00:34]}  Be7 {[%clk 0:01:29]} 27. b4 {[%clk 0:00:33]}  a5 {[%clk 0:01:30]} 28. Qb5 {[%clk 0:00:33]}  Qxb5 {[%clk 0:01:24]} 29. axb5 {[%clk 0:00:33]}  Bxc5 {[%clk 0:01:25]} 30. bxc5 {[%clk 0:00:34]}  Rxc5 {[%clk 0:01:25]} 31. Rb1 {[%clk 0:00:34]}  Rc7 {[%clk 0:01:22]} 32. Kg1 {[%clk 0:00:25]}  Kf8 {[%clk 0:01:21]} 33. Ra1 {[%clk 0:00:23]}  Ra7 {[%clk 0:01:20]} 34. Kf2 {[%clk 0:00:22]}  Ke7 {[%clk 0:01:19]} 35. Ke3 {[%clk 0:00:22]}  Kd6 {[%clk 0:01:20]} 36. Kd4 {[%clk 0:00:22]}  e5+ {[%clk 0:01:17]} 37. Kc4 {[%clk 0:00:20]}  Rc7+ {[%clk 0:01:06]} 38. Kb3 {[%clk 0:00:20]}  Kc5 {[%clk 0:00:59]} 39. Ka4 {[%clk 0:00:20]}  Kb6 {[%clk 0:00:57]} 40. Rd1 {[%clk 0:00:18]}  Rc4+ {[%clk 0:00:57]} 41. Kb3 {[%clk 0:00:14]}  Rb4+ {[%clk 0:00:53]} 42. Kc3 {[%clk 0:00:15]}  Rd4 {[%clk 0:00:44]} 43. Rb1 {[%clk 0:00:10]}  f6 {[%clk 0:00:37]} 44. g3 {[%clk 0:00:08]}  Rd5 {[%clk 0:00:36]} 45. f4 {[%clk 0:00:07]}  Rxb5 {[%clk 0:00:33]} 46. Rd1 {[%clk 0:00:07]}  Rc5+ {[%clk 0:00:33]} 47. Kb3 {[%clk 0:00:07]}  Kc7 {[%clk 0:00:31]} 48. fxe5 {[%clk 0:00:06]}  Rxe5 {[%clk 0:00:31]} 49. Rd4 {[%clk 0:00:06]}  g5 {[%clk 0:00:26]} 50. Rc4+ {[%clk 0:00:06]}  Kd6 {[%clk 0:00:25]} 51. Ka4 {[%clk 0:00:06]}  h5 {[%clk 0:00:25]} 52. h4 {[%clk 0:00:06]}  g4 {[%clk 0:00:25]} 53. Rf4 {[%clk 0:00:05]}  Ke6 {[%clk 0:00:24]} 54. Kb3 {[%clk 0:00:05]}  Re3+ {[%clk 0:00:24]} 55. Kc4 {[%clk 0:00:06]}  Rxg3 {[%clk 0:00:24]} 56. Kb5 {[%clk 0:00:06]}  Rf3 {[%clk 0:00:24]} 0-1


[Site "https://www.chess.com"]

[Event "Titled Tuesday Blitz December 27 Late 2022"]
[White "Averjanov, Alexey"]
[Black "Rengifo Blancas, Renzo Jhonathan"]
[WhiteFideId "14109867"]
[BlackFideId "3807185"]
[WhiteElo "2399"]
[BlackElo "2131"]
[Result "1-0"]
[Round "11"]
[TimeControl "180+2"]
[Date "2022.12.27"]
[WhiteClock "0:02:56"]
[BlackClock "0:02:27"]

1. d4 {[%clk 0:03:00]}  d5 {[%clk 0:03:00]} 2. c4 {[%clk 0:03:01]}  c6 {[%clk 0:03:00]} 3. e3 {[%clk 0:03:01]}  Nf6 {[%clk 0:03:01]} 4. Bd3 {[%clk 0:03:00]}  e6 {[%clk 0:03:01]} 5. Nd2 {[%clk 0:03:00]}  Nbd7 {[%clk 0:03:02]} 6. Ngf3 {[%clk 0:03:01]}  Bd6 {[%clk 0:03:02]} 7. O-O {[%clk 0:03:01]}  O-O {[%clk 0:03:03]} 8. e4 {[%clk 0:03:02]}  dxe4 {[%clk 0:03:02]} 9. Nxe4 {[%clk 0:03:03]}  Nxe4 {[%clk 0:03:03]} 10. Bxe4 {[%clk 0:03:03]}  Nf6 {[%clk 0:03:04]} 11. Bc2 {[%clk 0:03:04]}  c5 {[%clk 0:02:59]} 12. b3 {[%clk 0:03:04]}  cxd4 {[%clk 0:03:00]} 13. Qxd4 {[%clk 0:03:05]}  Qc7 {[%clk 0:02:47]} 14. Bg5 {[%clk 0:03:03]}  e5 {[%clk 0:02:47]} 15. Qh4 {[%clk 0:03:03]}  h6 {[%clk 0:02:26]} 16. Bxf6 {[%clk 0:02:57]}  g6 {[%clk 0:02:27]} 17. Qxh6 {[%clk 0:02:56]} 1-0


[Site "https://www.chess.com"]

[Event "Titled Tuesday Blitz December 27 Late 2022"]
[White "Avila Pavas, Santiago"]
[Black "Tomaszewski, Kacper"]
[WhiteFideId "4437128"]
[BlackFideId "1127373"]
[WhiteElo "2522"]
[BlackElo "2313"]
[Result "1-0"]
[Round "11"]
[TimeControl "180+2"]
[Date "2022.12.27"]
[WhiteClock "0:01:42"]
[BlackClock "0:00:29"]

1. d4 {[%clk 0:03:00]}  d6 {[%clk 0:02:55]} 2. e4 {[%clk 0:03:00]}  Nf6 {[%clk 0:02:54]} 3. Nc3 {[%clk 0:03:00]}  e5 {[%clk 0:02:54]} 4. Nf3 {[%clk 0:03:00]}  Nbd7 {[%clk 0:02:54]} 5. Bc4 {[%clk 0:03:00]}  Be7 {[%clk 0:02:52]} 6. O-O {[%clk 0:03:00]}  Nb6 {[%clk 0:02:52]} 7. Bb3 {[%clk 0:03:00]}  exd4 {[%clk 0:02:52]} 8. Qxd4 {[%clk 0:02:58]}  O-O {[%clk 0:02:51]} 9. a4 {[%clk 0:02:57]}  a5 {[%clk 0:02:49]} 10. Bg5 {[%clk 0:02:56]}  Nfd7 {[%clk 0:02:45]} 11. Bf4 {[%clk 0:02:54]}  Nc5 {[%clk 0:02:39]} 12. Ba2 {[%clk 0:02:52]}  Ne6 {[%clk 0:02:34]} 13. Qd2 {[%clk 0:02:52]}  Nxf4 {[%clk 0:02:29]} 14. Qxf4 {[%clk 0:02:53]}  Bf6 {[%clk 0:02:26]} 15. Qe3 {[%clk 0:02:43]}  Re8 {[%clk 0:02:20]} 16. Rfe1 {[%clk 0:02:42]}  Bg4 {[%clk 0:02:16]} 17. Nd4 {[%clk 0:02:40]}  Bd7 {[%clk 0:01:54]} 18. Rad1 {[%clk 0:02:38]}  Qc8 {[%clk 0:01:51]} 19. Bb3 {[%clk 0:02:15]}  Rf8 {[%clk 0:01:43]} 20. f4 {[%clk 0:02:11]}  Qe8 {[%clk 0:01:41]} 21. e5 {[%clk 0:02:10]}  dxe5 {[%clk 0:01:34]} 22. fxe5 {[%clk 0:02:11]}  Bh4 {[%clk 0:01:32]} 23. g3 {[%clk 0:02:10]}  Be7 {[%clk 0:01:27]} 24. e6 {[%clk 0:02:09]}  fxe6 {[%clk 0:01:00]} 25. Nxe6 {[%clk 0:02:09]}  Rf5 {[%clk 0:00:39]} 26. Nxc7+ {[%clk 0:02:07]}  Kh8 {[%clk 0:00:40]} 27. Nxe8 {[%clk 0:02:06]}  Bc5 {[%clk 0:00:39]} 28. Nd6 {[%clk 0:01:48]}  Bxe3+ {[%clk 0:00:36]} 29. Rxe3 {[%clk 0:01:49]}  Rff8 {[%clk 0:00:31]} 30. Nf7+ {[%clk 0:01:48]}  Kg8 {[%clk 0:00:31]} 31. Ne5+ {[%clk 0:01:42]}  Kh8 {[%clk 0:00:31]} 32. Nxd7 {[%clk 0:01:43]}  Nxd7 {[%clk 0:00:30]} 33. Rxd7 {[%clk 0:01:43]}  h5 {[%clk 0:00:29]} 34. Ree7 {[%clk 0:01:42]}  h4 {[%clk 0:00:29]} 35. Rxg7 {[%clk 0:01:42]} 1-0


[Site "https://www.chess.com"]

[Event "Titled Tuesday Blitz December 27 Late 2022"]
[White "Bjelobrk, Igor"]
[Black "Novikova, Galina"]
[WhiteFideId "4300726"]
[BlackFideId "4157095"]
[WhiteElo "2403"]
[BlackElo "2073"]
[Result "1-0"]
[Round "11"]
[TimeControl "180+2"]
[Date "2022.12.27"]
[WhiteClock "0:01:15"]
[BlackClock "0:00:46"]

1. Nf3 {[%clk 0:02:56]}  e6 {[%clk 0:03:00]} 2. g3 {[%clk 0:02:55]}  f5 {[%clk 0:03:01]} 3. Bg2 {[%clk 0:02:55]}  Nf6 {[%clk 0:03:02]} 4. O-O {[%clk 0:02:55]}  Be7 {[%clk 0:03:02]} 5. b3 {[%clk 0:02:55]}  d6 {[%clk 0:03:02]} 6. d4 {[%clk 0:02:55]}  O-O {[%clk 0:03:01]} 7. Bb2 {[%clk 0:02:56]}  Qe8 {[%clk 0:02:59]} 8. c4 {[%clk 0:02:55]}  Qh5 {[%clk 0:02:59]} 9. e3 {[%clk 0:02:49]}  g5 {[%clk 0:02:59]} 10. Nbd2 {[%clk 0:02:48]}  g4 {[%clk 0:02:58]} 11. Ne1 {[%clk 0:02:47]}  Qg6 {[%clk 0:02:57]} 12. Nd3 {[%clk 0:02:47]}  h5 {[%clk 0:02:56]} 13. Nf4 {[%clk 0:02:47]}  Qf7 {[%clk 0:02:54]} 14. e4 {[%clk 0:02:47]}  Nc6 {[%clk 0:02:43]} 15. exf5 {[%clk 0:02:45]}  e5 {[%clk 0:02:36]} 16. Ng6 {[%clk 0:02:41]}  Bxf5 {[%clk 0:02:33]} 17. Nxf8 {[%clk 0:02:40]}  Rxf8 {[%clk 0:02:27]} 18. dxe5 {[%clk 0:02:37]}  dxe5 {[%clk 0:02:27]} 19. Qe2 {[%clk 0:02:19]}  Bd6 {[%clk 0:02:26]} 20. Ne4 {[%clk 0:02:19]}  Qg6 {[%clk 0:02:17]} 21. Nxf6+ {[%clk 0:02:15]}  Rxf6 {[%clk 0:02:14]} 22. Rad1 {[%clk 0:02:10]}  h4 {[%clk 0:01:58]} 23. c5 {[%clk 0:02:02]}  Bf8 {[%clk 0:01:45]} 24. Bxc6 {[%clk 0:02:00]}  bxc6 {[%clk 0:01:27]} 25. Qxe5 {[%clk 0:02:00]}  Bg7 {[%clk 0:01:27]} 26. Qxc7 {[%clk 0:01:37]}  Rf7 {[%clk 0:01:20]} 27. Qd8+ {[%clk 0:01:37]}  Kh7 {[%clk 0:01:20]} 28. Bxg7 {[%clk 0:01:36]}  Kxg7 {[%clk 0:01:19]} 29. Rd6 {[%clk 0:01:33]}  Qh5 {[%clk 0:01:09]} 30. Qxh4 {[%clk 0:01:33]}  Qxh4 {[%clk 0:01:09]} 31. gxh4 {[%clk 0:01:33]}  Be4 {[%clk 0:01:10]} 32. Re1 {[%clk 0:01:27]}  Bf3 {[%clk 0:01:07]} 33. h5 {[%clk 0:01:27]}  Rf5 {[%clk 0:01:07]} 34. h6+ {[%clk 0:01:27]}  Kf8 {[%clk 0:01:05]} 35. h7 {[%clk 0:01:26]}  Rh5 {[%clk 0:01:05]} 36. h8=Q+ {[%clk 0:01:26]}  Rxh8 {[%clk 0:01:05]} 37. Rd8+ {[%clk 0:01:26]}  Kg7 {[%clk 0:01:06]} 38. Rxh8 {[%clk 0:01:25]}  Kxh8 {[%clk 0:01:06]} 39. Re7 {[%clk 0:01:23]}  a6 {[%clk 0:01:05]} 40. b4 {[%clk 0:01:21]}  Kg8 {[%clk 0:01:04]} 41. Kf1 {[%clk 0:01:20]}  Bd5 {[%clk 0:01:03]} 42. a3 {[%clk 0:01:19]}  Kf8 {[%clk 0:01:02]} 43. Ra7 {[%clk 0:01:19]}  Ke8 {[%clk 0:01:02]} 44. Ke1 {[%clk 0:01:19]}  Bc4 {[%clk 0:01:01]} 45. Kd2 {[%clk 0:01:19]}  Kd8 {[%clk 0:00:57]} 46. Ke3 {[%clk 0:01:18]}  Kc8 {[%clk 0:00:55]} 47. Kf4 {[%clk 0:01:18]}  Be2 {[%clk 0:00:55]} 48. Ke5 {[%clk 0:01:17]}  Kb8 {[%clk 0:00:54]} 49. Rg7 {[%clk 0:01:16]}  Bf3 {[%clk 0:00:49]} 50. Kd6 {[%clk 0:01:16]}  Kc8 {[%clk 0:00:46]} 51. Rc7+ {[%clk 0:01:15]}  Kb8 {[%clk 0:00:46]} 52. Rxc6 {[%clk 0:01:15]} 1-0


[Site "https://www.chess.com"]

[Event "Titled Tuesday Blitz December 27 Late 2022"]
[White "Bochnicka, Vladimir"]
[Black "Foisor, Sabina-Francesca"]
[WhiteFideId "14943450"]
[BlackFideId "1212915"]
[WhiteElo "2327"]
[BlackElo "2185"]
[Result "1-0"]
[Round "11"]
[TimeControl "180+2"]
[Date "2022.12.27"]
[WhiteClock "0:01:06"]
[BlackClock "0:00:17"]

1. e4 {[%clk 0:03:00]}  c6 {[%clk 0:02:53]} 2. d4 {[%clk 0:03:00]}  d5 {[%clk 0:02:52]} 3. e5 {[%clk 0:03:01]}  g6 {[%clk 0:02:51]} 4. c4 {[%clk 0:02:58]}  Bg7 {[%clk 0:02:47]} 5. Nc3 {[%clk 0:02:58]}  h5 {[%clk 0:02:40]} 6. Nf3 {[%clk 0:02:53]}  Nh6 {[%clk 0:02:38]} 7. Bxh6 {[%clk 0:02:51]}  Bxh6 {[%clk 0:02:38]} 8. cxd5 {[%clk 0:02:51]}  cxd5 {[%clk 0:02:38]} 9. Qb3 {[%clk 0:02:51]}  e6 {[%clk 0:02:28]} 10. Bd3 {[%clk 0:02:46]}  Nc6 {[%clk 0:02:23]} 11. O-O {[%clk 0:02:39]}  O-O {[%clk 0:02:20]} 12. a3 {[%clk 0:02:37]}  a6 {[%clk 0:02:03]} 13. Qc2 {[%clk 0:02:37]}  b5 {[%clk 0:02:02]} 14. Bxg6 {[%clk 0:02:31]}  fxg6 {[%clk 0:01:52]} 15. Qxg6+ {[%clk 0:02:32]}  Bg7 {[%clk 0:01:52]} 16. Ng5 {[%clk 0:02:32]}  Rf5 {[%clk 0:01:49]} 17. Nxe6 {[%clk 0:02:24]}  Bxe6 {[%clk 0:01:20]} 18. Qxe6+ {[%clk 0:02:23]}  Rf7 {[%clk 0:01:20]} 19. Qxc6 {[%clk 0:02:24]}  Rc8 {[%clk 0:01:14]} 20. Qxd5 {[%clk 0:02:23]}  Qg5 {[%clk 0:01:13]} 21. e6 {[%clk 0:02:16]}  Rf5 {[%clk 0:01:04]} 22. Qd7 {[%clk 0:02:01]}  Rff8 {[%clk 0:00:36]} 23. Ne4 {[%clk 0:01:53]}  Qd8 {[%clk 0:00:27]} 24. Qxd8 {[%clk 0:01:38]}  Rfxd8 {[%clk 0:00:28]} 25. e7 {[%clk 0:01:22]}  Rxd4 {[%clk 0:00:26]} 26. Rad1 {[%clk 0:01:08]}  Re8 {[%clk 0:00:16]} 27. Rxd4 {[%clk 0:01:07]}  Bxd4 {[%clk 0:00:17]} 28. Rd1 {[%clk 0:01:07]}  Bb6 {[%clk 0:00:16]} 29. Nf6+ {[%clk 0:01:07]}  Kf7 {[%clk 0:00:16]} 30. Nxe8 {[%clk 0:01:08]}  Kxe8 {[%clk 0:00:17]} 31. Re1 {[%clk 0:01:08]}  Bc5 {[%clk 0:00:17]} 32. g3 {[%clk 0:01:06]} 1-0


[Site "https://www.chess.com"]

[Event "Titled Tuesday Blitz December 27 Late 2022"]
[White "Defend, Balint"]
[Black "Battlecruiser_Operational"]
[WhiteFideId "17004853"]
[WhiteElo "1673"]
[BlackElo "2417"]
[Result "0-1"]
[Round "11"]
[TimeControl "180+2"]
[Date "2022.12.27"]
[WhiteClock "0:00:55"]
[BlackClock "0:00:05"]

1. e4 {[%clk 0:02:59]}  c6 {[%clk 0:03:00]} 2. d4 {[%clk 0:02:58]}  d5 {[%clk 0:03:00]} 3. e5 {[%clk 0:02:58]}  Bf5 {[%clk 0:02:59]} 4. h4 {[%clk 0:02:56]}  h5 {[%clk 0:02:58]} 5. Bd3 {[%clk 0:02:56]}  Bxd3 {[%clk 0:02:58]} 6. Qxd3 {[%clk 0:02:57]}  e6 {[%clk 0:02:59]} 7. Bg5 {[%clk 0:02:57]}  Qa5+ {[%clk 0:02:58]} 8. Nd2 {[%clk 0:02:57]}  Qa6 {[%clk 0:02:58]} 9. c4 {[%clk 0:02:58]}  c5 {[%clk 0:02:55]} 10. dxc5 {[%clk 0:02:53]}  Bxc5 {[%clk 0:02:55]} 11. Ne2 {[%clk 0:02:46]}  Nc6 {[%clk 0:02:53]} 12. Nf4 {[%clk 0:02:44]}  Nxe5 {[%clk 0:02:46]} 13. Qe2 {[%clk 0:02:44]}  Ng4 {[%clk 0:02:01]} 14. Nxd5 {[%clk 0:02:38]}  Bxf2+ {[%clk 0:01:52]} 15. Kf1 {[%clk 0:02:17]}  Rc8 {[%clk 0:01:38]} 16. Bf4 {[%clk 0:02:12]}  Qc6 {[%clk 0:01:17]} 17. Ne4 {[%clk 0:02:11]}  Bc5 {[%clk 0:01:17]} 18. Rd1 {[%clk 0:01:59]}  Ne7 {[%clk 0:01:09]} 19. Nxc5 {[%clk 0:01:53]}  Qxc5 {[%clk 0:00:57]} 20. Bd6 {[%clk 0:01:48]}  Qf2+ {[%clk 0:00:19]} 21. Qxf2 {[%clk 0:01:46]}  Nxf2 {[%clk 0:00:18]} 22. Nxe7 {[%clk 0:01:44]}  Nxd1 {[%clk 0:00:17]} 23. Nxc8 {[%clk 0:01:43]}  Kd7 {[%clk 0:00:16]} 24. Be5 {[%clk 0:01:40]}  Ne3+ {[%clk 0:00:12]} 25. Ke2 {[%clk 0:01:36]}  Nxc4 {[%clk 0:00:12]} 26. Bd4 {[%clk 0:01:32]}  Rxc8 {[%clk 0:00:10]} 27. Bxg7 {[%clk 0:01:29]}  f5 {[%clk 0:00:10]} 28. Rd1+ {[%clk 0:01:28]}  Ke7 {[%clk 0:00:10]} 29. Bd4 {[%clk 0:01:27]}  b6 {[%clk 0:00:10]} 30. Rc1 {[%clk 0:01:21]}  Nd6 {[%clk 0:00:09]} 31. Rg1 {[%clk 0:01:10]}  Rc2+ {[%clk 0:00:09]} 32. Kd3 {[%clk 0:01:11]}  Rc6 {[%clk 0:00:09]} 33. Re1 {[%clk 0:01:11]}  Ne4 {[%clk 0:00:09]} 34. Re3 {[%clk 0:01:10]}  Kd6 {[%clk 0:00:09]} 35. Re1 {[%clk 0:01:08]}  e5 {[%clk 0:00:09]} 36. Be3 {[%clk 0:01:07]}  Ke6 {[%clk 0:00:09]} 37. a3 {[%clk 0:01:05]}  Rc7 {[%clk 0:00:09]} 38. Re2 {[%clk 0:00:59]}  Rg7 {[%clk 0:00:08]} 39. Rc2 {[%clk 0:00:59]}  Kd5 {[%clk 0:00:05]} 40. b4 {[%clk 0:00:57]}  f4 {[%clk 0:00:05]} 41. Bg1 {[%clk 0:00:56]}  Rg3+ {[%clk 0:00:05]} 42. Ke2 {[%clk 0:00:55]}  Rxg2+ {[%clk 0:00:05]} 43. Kf3 {[%clk 0:00:55]}  Rxc2 {[%clk 0:00:05]} 0-1


[Site "https://www.chess.com"]

[Event "Titled Tuesday Blitz December 27 Late 2022"]
[White "Dias, Joao Batista"]
[Black "marik_spb"]
[WhiteFideId "2108240"]
[WhiteElo "1796"]
[BlackElo "2448"]
[Result "0-1"]
[Round "11"]
[TimeControl "180+2"]
[Date "2022.12.27"]
[WhiteClock "0:01:35"]
[BlackClock "0:01:03"]

1. e4 {[%clk 0:03:00]}  c6 {[%clk 0:02:52]} 2. d4 {[%clk 0:03:00]}  d5 {[%clk 0:02:51]} 3. Nd2 {[%clk 0:02:59]}  dxe4 {[%clk 0:02:51]} 4. Nxe4 {[%clk 0:02:59]}  Nf6 {[%clk 0:02:52]} 5. Ng3 {[%clk 0:02:59]}  h5 {[%clk 0:02:51]} 6. h3 {[%clk 0:02:58]}  h4 {[%clk 0:02:50]} 7. N3e2 {[%clk 0:02:57]}  Bf5 {[%clk 0:02:50]} 8. Nf3 {[%clk 0:02:54]}  e6 {[%clk 0:02:48]} 9. Nf4 {[%clk 0:02:54]}  Nbd7 {[%clk 0:02:35]} 10. Bd3 {[%clk 0:02:54]}  Bd6 {[%clk 0:02:29]} 11. Bxf5 {[%clk 0:02:51]}  Qa5+ {[%clk 0:02:29]} 12. c3 {[%clk 0:02:44]}  Qxf5 {[%clk 0:02:29]} 13. Ne2 {[%clk 0:02:38]}  O-O-O {[%clk 0:02:24]} 14. Be3 {[%clk 0:02:36]}  Nd5 {[%clk 0:02:21]} 15. Qa4 {[%clk 0:02:33]}  Kb8 {[%clk 0:02:14]} 16. Bd2 {[%clk 0:02:26]}  N7b6 {[%clk 0:02:13]} 17. Qb3 {[%clk 0:02:24]}  Nf4 {[%clk 0:01:38]} 18. Nxf4 {[%clk 0:02:21]}  Bxf4 {[%clk 0:01:39]} 19. Bxf4+ {[%clk 0:02:20]}  Qxf4 {[%clk 0:01:40]} 20. a4 {[%clk 0:02:11]}  Qe4+ {[%clk 0:01:25]} 21. Kf1 {[%clk 0:02:06]}  Nd5 {[%clk 0:01:11]} 22. Qd1 {[%clk 0:01:52]}  Nf4 {[%clk 0:01:06]} 23. Kg1 {[%clk 0:01:44]}  g5 {[%clk 0:01:03]} 24. Nxg5 {[%clk 0:01:35]}  Qxg2# {[%clk 0:01:03]} 0-1


[Site "https://www.chess.com"]

[Event "Titled Tuesday Blitz December 27 Late 2022"]
[White "Diaz Herquinio, Brahian"]
[Black "White, John S."]
[WhiteFideId "3809480"]
[BlackFideId "2502348"]
[WhiteElo "2051"]
[BlackElo "2235"]
[Result "1-0"]
[Round "11"]
[TimeControl "180+2"]
[Date "2022.12.27"]
[WhiteClock "0:00:22"]
[BlackClock "0:00:01"]

1. e3 {[%clk 0:02:33]}  e5 {[%clk 0:02:58]} 2. d4 {[%clk 0:02:31]}  exd4 {[%clk 0:02:55]} 3. Qxd4 {[%clk 0:02:26]}  Nc6 {[%clk 0:02:54]} 4. Qd1 {[%clk 0:02:26]}  d5 {[%clk 0:02:53]} 5. Nf3 {[%clk 0:02:27]}  Nf6 {[%clk 0:02:53]} 6. c4 {[%clk 0:02:28]}  Be6 {[%clk 0:02:50]} 7. cxd5 {[%clk 0:02:25]}  Nxd5 {[%clk 0:02:46]} 8. Be2 {[%clk 0:02:25]}  Be7 {[%clk 0:02:42]} 9. O-O {[%clk 0:02:24]}  O-O {[%clk 0:02:42]} 10. a3 {[%clk 0:02:19]}  a5 {[%clk 0:02:38]} 11. Qc2 {[%clk 0:02:17]}  Bf6 {[%clk 0:02:29]} 12. Rd1 {[%clk 0:02:16]}  Qe7 {[%clk 0:02:23]} 13. e4 {[%clk 0:02:10]}  Nb6 {[%clk 0:02:22]} 14. Nc3 {[%clk 0:02:03]}  Rfd8 {[%clk 0:02:18]} 15. Bf4 {[%clk 0:02:01]}  g6 {[%clk 0:02:00]} 16. e5 {[%clk 0:01:44]}  Bg7 {[%clk 0:01:58]} 17. Ne4 {[%clk 0:01:44]}  Rxd1+ {[%clk 0:01:54]} 18. Rxd1 {[%clk 0:01:41]}  Bf5 {[%clk 0:01:45]} 19. Bd3 {[%clk 0:01:22]}  Nxe5 {[%clk 0:01:42]} 20. Nxe5 {[%clk 0:01:17]}  Bxe5 {[%clk 0:01:40]} 21. Bxe5 {[%clk 0:01:11]}  Qxe5 {[%clk 0:01:38]} 22. Nc5 {[%clk 0:01:10]}  Bxd3 {[%clk 0:01:33]} 23. Nxd3 {[%clk 0:01:10]}  Qe7 {[%clk 0:01:26]} 24. Re1 {[%clk 0:01:10]}  Qd6 {[%clk 0:01:22]} 25. Nc5 {[%clk 0:01:09]}  Qc6 {[%clk 0:01:10]} 26. Qc3 {[%clk 0:01:00]}  Nd5 {[%clk 0:01:05]} 27. Qd4 {[%clk 0:00:58]}  Rd8 {[%clk 0:00:57]} 28. Ne4 {[%clk 0:00:57]}  Qe6 {[%clk 0:00:41]} 29. Rd1 {[%clk 0:00:53]}  c6 {[%clk 0:00:39]} 30. Nf6+ {[%clk 0:00:50]}  Kf8 {[%clk 0:00:24]} 31. Nxh7+ {[%clk 0:00:49]}  Kg8 {[%clk 0:00:23]} 32. Ng5 {[%clk 0:00:42]}  Qf5 {[%clk 0:00:16]} 33. Qh4 {[%clk 0:00:39]}  Kg7 {[%clk 0:00:07]} 34. Qh7+ {[%clk 0:00:36]}  Kf6 {[%clk 0:00:07]} 35. h4 {[%clk 0:00:28]}  Rf8 {[%clk 0:00:01]} 36. Re1 {[%clk 0:00:26]}  b5 {[%clk 0:00:02]} 37. Qh6 {[%clk 0:00:24]}  Nf4 {[%clk 0:00:01]} 38. Qxf8 {[%clk 0:00:22]} 1-0


[Site "https://www.chess.com"]